Workbook

Sheet 最终表排序
A1: 附件1：
A2: 安顺市平坝区马场镇卫生院2023年公开招聘事业编制工作人员笔试、面试总成绩及进入体检人员名单
A3: 序号 | B3: 姓名 | C3: 报考单位及代码 | D3: 报考岗位及代码 | E3: 招聘人数 | F3: 考号 | G3: 笔试成绩百分制 | H3: 笔试成绩折算50% | I3: 面试成绩百分制 | J3: 面试成绩折算50% | K3: 总成绩 | L3: 是否进入体检 | M3: 备注
A4: 1 | B4: 杨蕾 | C4: 2023106安顺市平坝区马场镇卫生院 | D4: 01临床医师 | E4: 3 | F4: 11801835802 | G4: 80.52 | H4: =G4*0.5 -> 40.26 | I4: 84.80 | J4: =I4*0.5 -> 42.40 | K4: =H4+J4 -> 82.66 | L4: 是
A5: 2 | B5: 王维利 | C5: 2023106安顺市平坝区马场镇卫生院 | D5: 01临床医师 | F5: 11801835824 | G5: 88.36 | H5: 44.18 | I5: 73.6 | J5: 36.80 | K5: 80.98 | L5: 是
A6: 3 | B6: 宋庆杰 | C6: 2023106安顺市平坝区马场镇卫生院 | D6: 01临床医师 | F6: 11801835825 | G6: 79.04 | H6: 39.52 | I6: 78.80 | J6: 39.40 | K6: 78.92 | L6: 是
A7: 4 | B7: 闵芸 | C7: 2023106安顺市平坝区马场镇卫生院 | D7: 01临床医师 | F7: 11801835821 | G7: 77.88 | H7: 38.94 | I7: 79.40 | J7: 39.70 | K7: 78.64
A8: 5 | B8: 李佳兰 | C8: 2023106安顺市平坝区马场镇卫生院 | D8: 01临床医师 | F8: 11801835818 | G8: 79.72 | H8: 39.86 | I8: 76.8 | J8: 38.40 | K8: 78.26
A9: 6 | B9: 张波 | C9: 2023106安顺市平坝区马场镇卫生院 | D9: 01临床医师 | F9: 11801835801 | G9: 77.14 | H9: 38.57 | I9: 79.20 | J9: 39.60 | K9: 78.17
A10: 7 | B10: 黄小娅 | C10: 2023106安顺市平坝区马场镇卫生院 | D10: 01临床医师 | F10: 11801835810 | G10: 76.82 | H10: 38.41 | I10: 77.20 | J10: 38.60 | K10: 77.01
A11: 8 | B11: 唐雷 | C11: 2023106安顺市平坝区马场镇卫生院 | D11: 01临床医师 | F11: 11801835829 | G11: 77.08 | H11: 38.54 | I11: 73.8 | J11: 36.90 | K11: 75.44
A12: 9 | B12: 高露 | C12: 2023106安顺市平坝区马场镇卫生院 | D12: 01临床医师 | F12: 11801835813 | G12: 76.32 | H12: 38.16 | I12: 0.00 | J12: 0.00 | K12: 38.16 | M12: 面试缺考
A13: 10 | B13: 杨婧 | C13: 2023106安顺市平坝区马场镇卫生院 | D13: 02口腔医师 | E13: 1 | F13: 11901835906 | G13: 69.82 | H13: 34.91 | I13: 84.8 | J13: =I13*0.5 -> 42.40 | K13: =H13+J13 -> 77.31 | L13: 是
A14: 11 | B14: 蔡其松 | C14: 2023106安顺市平坝区马场镇卫生院 | D14: 02口腔医师 | F14: 11901835908 | G14: 68.36 | H14: 34.18 | I14: 81.2 | J14: =I14*0.5 -> 40.60 | K14: =H14+J14 -> 74.78
A15: 12 | B15: 邓杨扬 | C15: 2023106安顺市平坝区马场镇卫生院 | D15: 02口腔医师 | F15: 11901835905 | G15: 62.48 | H15: 31.24 | I15: 80.2 | J15: =I15*0.5 -> 40.10 | K15: =H15+J15 -> 71.34
A16: 13 | B16: 张尚媛 | C16: 2023106安顺市平坝区马场镇卫生院 | D16: 03公共卫生医师 | E16: 1 | F16: 12001835909 | G16: 70.42 | H16: 35.21 | I16: 75.8 | J16: =I16*0.5 -> 37.90 | K16: =H16+J16 -> 73.11 | L16: 是
